Cogmind - Beta 15 @@@ ROGUE MODE // 2025.07.15 @ 04:10:48 Player: meta Result: Destroyed by G-47 Trooper with Particle Gun Performance ------------- Evolutions (1) 500 Regions Visited (3) 600 Robots Destroyed (23) 115 Value Destroyed (484) 484 Prototype IDs (1) 20 Alien Tech Used (0) 0 Bonus (155) 155 TOTAL SCORE: 1874 Bonus ------- Follower Combat Kills 155 Cogmind --------- Core Integrity 0/400 Matter 275/300 Energy 99/100 System Corruption 0% Temperature Cool (9) Movement Core (200) Ox3 Location -9/Materials Parts ------- > --- POWER (1) -------- (None) > --- PROPULSION (2) --- (None) > --- UTILITY (4) ------ Small Storage Unit Signal Interpreter Improved Terrain Scanner > --- WEAPON (2) ------- Improved Assault Rifle Katana > --- INVENTORY (8) ---- Light Nuclear Core Mining Laser Mining Laser Mining Laser Mining Claw Peak State ------------ > --- POWER ------------ Light Nuclear Core > --- PROPULSION ------- Aluminum Leg Improved Aluminum Leg > --- UTILITY ---------- Small Storage Unit Small Storage Unit Signal Interpreter Improved Terrain Scanner > --- WEAPON ----------- Light Assault Rifle Katana > --- INVENTORY -------- Light Nuclear Core Aluminum Leg Improved Assault Rifle Mining Laser Mining Laser Mining Laser Mining Claw [Rating: 17] Favorites ----------- Power Light Nuclear Core Engine Ion Engine Power Core Light Nuclear Core Propulsion Aluminum Leg Leg Aluminum Leg Utility Small Storage Unit Device Seismic Detector Storage Small Storage Unit Processor Signal Interpreter Weapon Assault Rifle Energy Gun Small Laser Ballistic Gun Assault Rifle Special Weapon Mining Laser Slashing Weapon Katana Build | -11 -10 -10 -9 ------- Run | Yrd Mat Min Mat Slots Evolved 2 | . . . 2 Power . | . . . . Propulsion . | . . . . Utility 2 | . . . 2 Weapon . | . . . . Parts Attached 22 | 8 3 2 9 Power 2 | 1 1 . . Engine 1 | 1 . . . Core 1 | . 1 . . Reactor . | . . . . Propulsion 5 | 2 . . 3 Treads . | . . . . Leg 5 | 2 . . 3 Wheel . | . . . . Hover . | . . . . Flight . | . . . . Utility 6 | 2 . . 4 Device 3 | 1 . . 2 Storage 2 | 1 . . 1 Processor 1 | . . . 1 Hackware . | . . . . Protection . | . . . . Artifact . | . . . . Weapon 9 | 3 2 2 2 Energy Gun 1 | . 1 . . Energy Cannon . | . . . . Ballistic Gun 5 | 2 1 . 2 Ballistic Cannon . | . . . . Launcher . | . . . . Special Weapon 2 | 1 . 1 . Impact Weapon . | . . . . Slashing Weapon 1 | . . 1 . Piercing Weapon . | . . . . Special Melee Weapon . | . . . . Unidentified Prototypes 1 | . . . 1 Parts Lost 8 | . 1 . 7 Power 1 | . . . 1 Propulsion 2 | . . . 2 Utility 2 | . . . 2 Weapon 3 | . 1 . 2 Highest Loss Streak 3 | . 1 . 3 To Critical Strikes . | . . . . Average Backups 5 | 1 3 7 7 Power . | . 1 1 1 Propulsion 1 | . . 1 1 Utility . | . . . . Weapon 3 | . 1 4 4 Tool/Special . | . . . . Unused Backups 3 | . . 1 2 Power 2 | . . 1 1 Propulsion . | . . . . Utility . | . . . . Weapon 1 | . . . 1 Tool/Special . | . . . . Average Slot Usage (%) 98 | . 99 100 94 Engine 4 | . 10 . . Core 8 | . 3 14 11 Leg 26 | . 28 28 21 Device 16 | . 14 14 23 Storage 13 | . 14 14 11 Processor 1 | . . . 4 Energy Gun 1 | . 2 2 . Ballistic Gun 13 | . 15 14 10 Special Weapon 7 | . 10 9 . Slashing Weapon 3 | . . 1 11 Peak Build Rating 17 | 7 9 12 17 Average Rating 10 | 5 7 9 15 On Entrance 7 | . 7 9 12 Naked Turns . | . . . . Heaviest Build 17 | 14 14 15 17 Greatest Support 23 | 20 20 20 23 Greatest Overweight (x) 1 | 1 . . . Average Overweight (x) . | . . . . Largest Inventory Capacity 8 | 8 8 8 8 Average Capacity 7 | 7 8 8 8 Most Carried 8 | 4 7 8 8 Average Carried 5 | 1 3 7 7 Final Capacity 8 | 8 8 8 8 Final Carried 8 | 3 7 8 5 Class Distribution -------------------- 92% | Mutant 7% | Scavenger-Mutant Dominant Class ---------------- Mutant | -10/Materials Mutant | -10/Mines Mutant | -9/Materials Resources | -11 -10 -10 -9 ----------- Run | Yrd Mat Min Mat Matter Collected 622 | 218 201 72 131 Remotely . | . . . . Salvage Created 741 | 66 134 39 502 Parts 47 | 4 12 2 29 Haulers Intercepted . | . . . . Recyclers Shooed 1 | . . . 1 Parts Field Recycled . | . . . . Retrieved Matter . | . . . . Parts Self-Destructed . | . . . . Prevented . | . . . . Kills | -11 -10 -10 -9 ------- Run | Yrd Mat Min Mat Combat Hostiles Destroyed 17 | . 5 1 11 Melee 2 | . . . 2 Guns 15 | . 5 1 9 Classes Destroyed 7 | 2 3 . 2 Builder 2 | . 1 . 1 Tunneler 1 | 1 . . . Recycler 3 | 1 . . 2 Swarmer 9 | . 3 . 6 Grunt 6 | . 2 1 3 Duelist 1 | . . . 1 Sentry 1 | . . . 1 Best Kill Streak 7 | 2 6 1 7 Combat Bots Only 7 | . 5 1 7 Max Kills in Single Turn 2 | 1 2 1 1 Gunslinging . | . . . . Exploded . | . . . . Melee 1 | . . . 1 Uniques/NPCs Destroyed . | . . . . Combat | -11 -10 -10 -9 -------- Run | Yrd Mat Min Mat Hostile Shots Fired 146 | . 22 2 122 Missed 42 | . 9 2 31 Hits 104 | . 13 . 91 Melee 5 | . . . 5 Projectile 99 | . 13 . 86 Critical Strikes 2 | . . . 2 Damage Taken 1350 | . 145 . 1205 Core 439 | . 35 . 404 Absorbed by Shields . | . . . . Core Remaining (%) 93 | 100 . 86 . Volleys Fired 98 | 14 23 9 52 Largest 2 | 2 2 2 1 Hottest 120 | 40 120 120 23 Shots Fired 143 | 28 45 18 52 Gun 131 | 28 42 9 52 Cannon . | . . . . Launcher . | . . . . Special 12 | . 3 9 . Kinetic 126 | 28 37 9 52 Thermal 17 | . 8 9 . Explosive . | . . . . Electromagnetic . | . . . . Robot Hit Streak 16 | 7 16 1 10 Robot Miss Streak 3 | 2 . 2 3 Penetration Max . | . . . . Secondary Targets 1 | . 1 . . Max Gunslinging Chain 1 | . 1 . . Shots Hit Robots 72 | 17 9 1 45 Core Hits 35 | 4 8 1 22 Critical Kills . | . . . . Critical Parts Destroyed . | . . . . Critical Strikes . | . . . . Melee Attacks 17 | . . . 17 Impact . | . . . . Slashing 17 | . . . 17 Piercing . | . . . . Sneak Attacks 3 | . . . 3 Combat Hostiles . | . . . . Follow-up Attacks . | . . . . Damage Inflicted 1063 | 160 133 19 751 Guns 701 | 160 107 15 419 Cannons . | . . . . Explosions . | . . . . Melee 332 | . . . 332 Ramming 6 | . 2 4 . Kinetic 701 | 160 107 15 419 Thermal 24 | . 24 . . Explosive . | . . . . Electromagnetic . | . . . . Impact . | . . . . Slashing 332 | . . . 332 Piercing . | . . . . Highest Corruption . | . . . . Average Corruption . | . . . . Corruption Purged . | . . . . Corruption Blocked . | . . . . Overload Shots . | . . . . Overflow Damage 14 | . . . 14 Projectiles . | . . . . Explosions . | . . . . Melee 14 | . . . 14 Knockbacks . | . . . . Impact . | . . . . Kinetic . | . . . . Secondary . | . . . . Self-Inflicted Damage . | . . . . Shots . | . . . . Rammed . | . . . . Targets Rammed 2 | . 1 1 . Kicked 2 | . 1 1 . Crushed . | . . . . Highest Temperature 90 | . 78 90 17 Average Temperature 24 | . 17 36 7 Received Heat Transfer 339 | . 51 . 288 Siege Activations . | . . . . Martial Activations . | . . . . Shielding Activations . | . . . . Robots Disrupted . | . . . . Combat Hostiles . | . . . . Robots Corrupted . | . . . . Combat Hostiles . | . . . . Parts Fried . | . . . . Impact Corruptions . | . . . . Robots Melted . | . . . . Combat Hostiles . | . . . . Parts Melted . | . . . . Heat Transferred 50 | . 50 . . Parts Sabotaged . | . . . . Parts Stolen . | . . . . Parts Stripped . | . . . . Power Chain Reactions . | . . . . Alert | -11 -10 -10 -9 ------- Run | Yrd Mat Min Mat Maximum Alert Level . | . . . . Low Security (%) 100 | 100 100 100 100 Level 1 . | . . . . Level 2 . | . . . . Level 3 . | . . . . Level 4 . | . . . . Level 5 . | . . . . High Security . | . . . . Max Security . | . . . . Peak Influence 181 | 5 101 92 181 Initial 10 | . . 10 . Average 27 | 1 16 20 59 Influence Increases 757 | 10 127 233 387 Destroy 0b10 Robot/C 440 | . 100 120 220 Destroy 0b10 Robot/NC 35 | 10 5 . 20 Destroy Leader 100 | . 20 30 50 Allied During Kill 21 | . . 21 . Disable Machine 75 | . . 60 15 Destroy Structure 11 | . 2 2 7 Lose Combat Pursuer 75 | . . . 75 Influence Decreases 585 | 10 100 260 215 Entered New Map 17 | . . 17 . Time Decay 461 | 10 90 223 138 Lost Part 80 | . 10 . 70 Lost Ally 27 | . . 20 7 Squads Dispatched 4 | . 1 1 2 Investigation 2 | . 1 1 . Extermination . | . . . . Reinforcement 2 | . . . 2 Assault . | . . . . Garrison . | . . . . Intercept . | . . . . Searches Triggered . | . . . . Construction Impeded . | . . . . Haulers Reinforced . | . . . . Active Scanning Responses . | . . . . Cargo Convoy Interrupts . | . . . . Stealth | -11 -10 -10 -9 --------- Run | Yrd Mat Min Mat Distress Signals 2 | . . . 2 Communications Jammed . | . . . . Distress Signals . | . . . . Times Spotted 30 | . 5 3 22 Peak Tracking Total 9 | . 4 2 9 Tactical Retreats 3 | . . . 3 Traps | -11 -10 -10 -9 ------- Run | Yrd Mat Min Mat Traps Triggered . | . . . . Indirectly . | . . . . Trap Hack Attempts . | . . . . Triggered . | . . . . Disarmed . | . . . . Reprogrammed . | . . . . Reused . | . . . . Traps Extracted . | . . . . Installed . | . . . . Triggered . | . . . . Machines | -11 -10 -10 -9 ---------- Run | Yrd Mat Min Mat Machines Disabled 5 | . . 4 1 Max in Single Turn 1 | . . 1 1 Machines Repaired . | . . . . Machines Dismantled . | . . . . Machines Sabotaged . | . . . . Overloaded Fab Kills . | . . . . Hacking | -11 -10 -10 -9 --------- Run | Yrd Mat Min Mat Machines Accessed 3 | . 2 1 . Terminals 1 | . 1 . . Fabricators . | . . . . Repair Stations . | . . . . Recycling Units 1 | . 1 . . Scanalyzers . | . . . . Garrison Access . | . . . . Total Hacks 6 | . 5 1 . Successful 2 | . 1 1 . Failed 4 | . 4 . . Catastrophic 1 | . 1 . . Database Lockouts . | . . . . Manual . | . . . . Terminals 3 | . 3 . . Fabricators . | . . . . Repair Stations . | . . . . Recycling Units 2 | . 2 . . Scanalyzers . | . . . . Garrison Access . | . . . . Terminal Hacks 2 | . 1 1 . Record 1 | . 1 . . Open Door 1 | . . 1 . Fabricator Hacks . | . . . . Repair Station Hacks . | . . . . Recycling Unit Hacks . | . . . . Scanalyzer . | . . . . Garrison Access Hacks . | . . . . Unauthorized Hacks . | . . . . Terminals . | . . . . Fabricators . | . . . . Repair Stations . | . . . . Recycling Units . | . . . . Scanalyzers . | . . . . Garrison Access . | . . . . Data Cores Recovered . | . . . . Used . | . . . . Hacking Detections 2 | . 2 . . Full Trace Events 2 | . 2 . . Feedback Events . | . . . . Feedback Blocked . | . . . . Robot Schematics Acquired . | . . . . Robots Built . | . . . . Authchips . | . . . . Time . | . . . . Total Robot Build Rating . | . . . . Part Schematics Acquired . | . . . . Parts Built . | . . . . Authchips . | . . . . Time . | . . . . Total Part Build Rating . | . . . . Parts Repaired . | . . . . Time . | . . . . Parts Recycled . | . . . . Recycled Matter . | . . . . Retrieved Matter . | . . . . Retrieved Components . | . . . . Parts Scanalyzed . | . . . . Part Schematics Acquired . | . . . . Parts Damaged . | . . . . Bothacking | -11 -10 -10 -9 ------------ Run | Yrd Mat Min Mat Used RIF Installer . | . . . . Robots Hacked . | . . . . Non-combat . | . . . . Combat . | . . . . Robot Hacks Applied . | . . . . Relay Couplers Released . | . . . . Fabnet Peak Effective % . | . . . . Robots Rewired . | . . . . Allies Hacked . | . . . . Hacks Repelled . | . . . . Allies | -11 -10 -10 -9 -------- Run | Yrd Mat Min Mat Total Allies 3 | . . 3 . Largest Group 3 | . . 3 1 Highest-Rated Group 40 | . . 40 8 Highest-Rated Ally 16 | . . 16 8 Total Orders 3 | . . 3 . GUARD 3 | . . 3 . Ally Attacks 36 | . . 28 8 Total Damage 412 | . . 323 89 Kills 7 | . . 6 1 Allies Corrupted . | . . . . Allies Melted . | . . . . Intel | -11 -10 -10 -9 ------- Run | Yrd Mat Min Mat Active Infowar (turns) 2201 | 21 856 736 588 Sensors 340 | . . . 340 Terrain 588 | . . . 588 Seismic 1949 | 21 856 736 336 Robot Analysis Total . | . . . . Derelict Logs Recovered 1 | . . 1 . Drone Launches . | . . . . Drone Recoveries . | . . . . Exploration | -11 -10 -10 -9 ------------- Run | Yrd Mat Min Mat Turns Passed 2312 | 132 856 736 588 Spaces Moved 866 | 71 167 441 187 Core 15 | 15 . . . Treads . | . . . . Legs 851 | 56 167 441 187 Wheels . | . . . . Hover . | . . . . Flight . | . . . . Fastest Speed 50 | 50 120 120 120 Average Speed 119 | 110 120 120 120 Slowest Speed 120 | 120 120 120 120 Overloaded Moves . | . . . . Propulsion Burnouts . | . . . . Robots Hopped . | . . . . Potential Cave-ins . | . . . . Cave-ins Triggered . | . . . . Exploration Rate (%) 26 | 4 19 66 18 Regions Visited 3 Branch Regions 1 Pre-discovered Areas . | . . . . Known Exits Taken . | . . . . Unknown Exits Taken 3 | 1 1 1 . Scrap Searched 1 | . . 1 . Spaces Dug 10 | . . 2 8 Terrain Destroyed 11 | . 1 2 8 Melee 8 | . . . 8 Projectile 3 | . 1 2 . AOE . | . . . . Terrain Rammed . | . . . . Walls Destroyed . | . . . . Machines Disabled . | . . . . Actions | -11 -10 -10 -9 --------- Run | Yrd Mat Min Mat Total 1964 | 96 773 613 482 Wait 936 | . 575 154 207 Move 863 | 70 166 440 187 Hop . | . . . . Pick Up 16 | 3 5 4 4 Fast Attach 8 | 7 . . 1 Attach 8 | 1 1 . 6 Detach 2 | 1 . . 1 Swap 7 | . 2 2 3 Drop 7 | . . 3 4 Fire 98 | 14 23 9 52 Melee 17 | . . . 17 Ram . | . . . . Kick 2 | . 1 1 . Crush . | . . . . Escape Stasis . | . . . . Rewire . | . . . . Trap . | . . . . Miscellaneous . | . . . . Route ------- -11/Scrapyard -10/Materials -10/Mines -9/Materials History --------- Turn | Location | Event 4 | -11/Scrapyard | Discovered new exit (range 16) 133 | -11/Scrapyard | Entered Materials 315 | -10/Materials | Build established: Mutant 961 | -10/Materials | Discovered new exit (range 8) 989 | -10/Materials | Entered Mines 994 | -10/Mines | Assisted by bots powering up and referring to "LRC-V3" 1013 | -10/Mines | Learned Materials stockpile data 1269 | -10/Mines | Met a Derelict shopkeep closing up shop 1708 | -10/Mines | Discovered new exit (range 13) 1725 | -10/Mines | Entered Materials 1725 | -9/Materials | Accompanied by 1 ally 1725 | -9/Materials | Evolved 2 slots: Utility x2 2087 | -9/Materials | Core integrity fell below 50% 2114 | -9/Materials | Lost 3 parts (2u1w) 2127 | -9/Materials | Destroyed 7 combat bots 2253 | -9/Materials | Core integrity fell below 20% 2313 | -9/Materials | Destroyed by G-47 Trooper with Particle Gun Last Messages --------------- 02271_ U-05 Engineer builds a Wall. 02271_ U-05 Engineer lays Concrete. 02273_ R-06 Scavenger inserts Lgt. Assault Rifle into recycling unit. 02274_ U-05 Engineer lays Concrete. 02275_ Sneak attack on U-05 Engineer. 02275_ U-05 Engineer destroyed. 02275_ U-05 Engineer lays Concrete. 02278_ The unstable cave ceiling collapses. 02278_ U-05 Engineer lays Concrete. 02278_ R-06 Scavenger collects Heat Sink. 02289_ Identified Imp. Assault Rifle. 02290_ Dropped Sml. Storage Unit. 02291_ R-06 Scavenger collects Sml. Storage Unit. 02301_ Critical hit (Burn: +37). 02309_ Imp. Aluminum Leg destroyed. 02311_ Aluminum Leg destroyed. 02312_ Lgt. Nuclear Core destroyed. 02313_ S-10 Pest destroyed. Map ----- +----------------------------------------------------+ | ?????????????????????????????????????????????????? | | ?????????????????????????????????????????????????? | | ?????????????????????????????????????????????????? | | ?????????????????????????????????????????????????? | | ?????????????????????????????????????????????????? | | ?????????????????????????????????????????????????? | | ?????????????????????????????????????????????????? | | ?????????????????????????????????????????????????? | | ?????????????????????????????????????????????????? | | ?????????????????????????????????????????????????? | | ?????????????????????#???????????????????????????? | | ?????????????????????????????????????????????????? | | ????????????? ???????????????????????????????????? | | ???????????????????#???#?????????????????????????? | | ????????????????#????????????????????????????????? | | ??????#???#?#????????????????????????????????????? | | ???#???????#?#?#?????????????????????????????????? | | ????#?#???????#?????????????? ???????????????????? | | ??????????#???#??????#???????????????????????????? | | ??????????? ?? ????????????????????????????????? | | #??#???????#????????????#????????#??#????????????? | | ????#??###########???#???######??????????????????? | | #??????# ###????##!!!!##????????#????????? | | ???????# #????#! !#?????????????????? | | ? ????## #????# #?????? ??????????? | | ???"?## #######@ ####??????????????? | | ??????# % |%! gg =%[st ???????? | | ??"??## #########+#### ???????? | | ??"??# # % #??#?? ? ?#???? ????????? | | ?????# ##???????? #?? ???? ????????? | | ##+#### % ###?????????] #???? ???????????? | | """ #????????? #????????????????? | | ####### "Y" #??????? ? #????????????????? | | #?????# # =% " " ##?? ??"???+????????????????? | | ?######### #?#? ??????? ???????????????? | | ?# # #?? ? ?????? ??????????????? | | ?# # #???????????? ??????????????? | | ?# """ # #????????????? ?????????????? | | ?# """ # """ #???????????????????????????? | | ?# """ + """ # ??? ??????????????????????? | | ?# """ # """ #???????????????????????????? | | ?# """ ### +???????????????????????????? | | ?# [=[ #?# ? ?? ??????????????????????????? | | ?# *% #?? ""???????????????????????????????? | | ?#####+###### "????????????????????????????????? | | ????#**=%[ # "????????????????????????????????? | | ????#%= """ + ?????????????????????????????? | | ?#??#*=[""" # ?# ??????????????????????????? | | ????# ! """ #???"?"??????????????????????????????? | | ????# #? ""???????????????????????????????? | +----------------------------------------------------+ Best States ------------- Heat Dissipation 28 Energy Generation 14 Energy Capacity 250 Matter Stores 300 Matter Capacity 300 Sight Range 16 Robot Scan Range 14 Terrain Scan Range 16 Terrain Scan Density 10 Evasion (%) 55 Item Schematics ----------------- None Robot Schematics ------------------ None Fabricated ------------ Nothing Repaired ---------- Nothing Alien Tech Used ----------------- None Achievements -------------- Part-time Excavator Challenges ------------ None Game ------ Seed TransmissionArchitectLattice Manual? 0 Play Time 00:15:28 Cumulative 8.9 hours Start 2025.07.15 @ 03:54:21 End 2025.07.15 @ 04:10:48 Sessions 1 Manual Loads 0 Difficulty Rogue Special Mode None Game No. 15 Rogue 11 Adventurer 4 Explorer 0 Win Type - Total 0 Types 0/0/0/0/0/0/0/0/0/0 Lore% 2 Gallery% 12 Achievement% 16 Wizard Run 0 Options --------- Layout 1 ASCII 0 Keyboard 1 Movement Arrows Keybinds 0 Fullscreen 2 Font 24/Smallcaps Map View 50x35 Zoom Use 0% Tactical HUD 1 Map Filters NONE Filters NONE Steam 1 RUN: 559317e3-6cbf-4e74-a9d0-379024052578